Cogmind - Beta 14 @@@ ROGUE MODE // 2025.03.26 @ 21:35:20 Player: Cogchaaaan Result: Core destroyed Performance ------------- Evolutions (3) 1500 Regions Visited (10) 2000 Robots Destroyed (140) 700 Value Destroyed (5364) 5364 Prototype IDs (26) 520 Alien Tech Used (0) 0 Bonus (3464) 3464 TOTAL SCORE: 13548 Bonus ------- High Alert Combat Kills 1042 Follower Combat Kills 468 Entered Garrisons 400 Used RIF Installer 1500 Aligned with FarCom 300 Friendly Fire -246 Cogmind --------- Core Integrity 0/700 Matter 216/300 Energy 4/100 System Corruption 4% Temperature Critical (648) Movement Treading (480) Ox4 Location -7/Garrison Parts ------- > --- POWER (1) -------- (None) > --- PROPULSION (4) --- Light Treads > --- UTILITY (5) ------ Improved Heat Sink Improved Heat Sink Huge Storage Unit Improved Particle Charger Improved Light Armor Plating > --- WEAPON (3) ------- Wave Gun Wave Gun > --- INVENTORY (25) --- Light Nuclear Core Light Nuclear Core Improved Deuterium Engine High-capacity Storage Unit Compact Matter Pod (150) Structural Scanner Improved Sensor Array Improved Signal Interpreter Seismic Detector Particle Charger Improved Light Armor Plating Improved Light Armor Plating Improved Shield Generator Relay Coupler [NC] (28) High-powered Tractor Beam Supersonic Drone Bay (1/1) Gatling Laser Autogun Autogun Coil Gun Coil Gun Coil Gun Rocket Launcher Improved Remote Datajack Improved Plasma Cutter Peak State ------------ > --- POWER ------------ Improved Deuterium Engine > --- PROPULSION ------- Light Treads Light Treads Improved Treads > --- UTILITY ---------- Improved Heat Sink Improved Heat Sink Huge Storage Unit Improved Particle Charger Improved Light Armor Plating > --- WEAPON ----------- Wave Gun Wave Gun Wave Gun > --- INVENTORY -------- Light Nuclear Core Light Nuclear Core Light Nuclear Core High-capacity Storage Unit Compact Matter Pod Structural Scanner Improved Sensor Array Improved Signal Interpreter Seismic Detector Particle Charger Improved Light Armor Plating Improved Light Armor Plating Improved Shield Generator Relay Coupler [NC] High-powered Tractor Beam Supersonic Drone Bay Gatling Laser Autogun Autogun Coil Gun Coil Gun Coil Gun Rocket Launcher Improved Remote Datajack Improved Plasma Cutter [Rating: 49] Favorites ----------- Power Ion Engine Engine Ion Engine Power Core Light Nuclear Core Propulsion Light Treads Treads Light Treads Leg Aluminum Leg Wheel Armored Wheel Utility Improved Heat Sink Device Improved Heat Sink Storage Huge Storage Unit Processor Advanced Targeting Computer Protection Medium Armor Plating Weapon Gatling Laser Energy Gun Gatling Laser Energy Cannon Beam Cannon Ballistic Gun Autogun Launcher Rocket Launcher Special Weapon Plasma Cutter Impact Weapon Flail Slashing Weapon Katana Special Melee Weapon Datajack Build | -11 -10 -10 -9 -9 -9 -8 -8 -8 -7 -7 ------- Run | Yrd Mat Min Mat Min Exi Min Mat Gar Fac Gar Slots Evolved 6 | . . . 2 . . . 2 . 2 . Power . | . . . . . . . . . . . Propulsion 2 | . . . 1 . . . . . 1 . Utility 3 | . . . . . . . 2 . 1 . Weapon 1 | . . . 1 . . . . . . . Parts Attached 187 | 7 19 1 58 1 1 . 14 24 4 58 Power 13 | 1 2 . 2 . . . 2 . . 6 Engine 9 | 1 2 . 1 . . . 2 . . 3 Core 4 | . . . 1 . . . . . . 3 Reactor . | . . . . . . . . . . . Propulsion 30 | 2 2 . 9 . . . 3 2 1 11 Treads 27 | . 2 . 9 . . . 3 2 1 10 Leg 2 | 2 . . . . . . . . . . Wheel 1 | . . . . . . . . . . 1 Hover . | . . . . . . . . . . . Flight . | . . . . . . . . . . . Utility 61 | 2 5 1 32 1 1 . 5 4 2 8 Device 48 | 1 3 1 32 1 1 . . 4 . 5 Storage 4 | 1 2 . . . . . 1 . . . Processor 5 | . . . . . . . 2 . 2 1 Hackware . | . . . . . . . . . . . Protection 4 | . . . . . . . 2 . . 2 Artifact . | . . . . . . . . . . . Weapon 83 | 2 10 . 15 . . . 4 18 1 33 Energy Gun 34 | 2 5 . 6 . . . 2 6 1 12 Energy Cannon 6 | . . . 3 . . . 2 . . 1 Ballistic Gun 15 | . 3 . 2 . . . . 3 . 7 Ballistic Cannon . | . . . . . . . . . . . Launcher 9 | . . . 1 . . . . 3 . 5 Special Weapon 2 | . . . . . . . . . . 2 Impact Weapon 2 | . 1 . 1 . . . . . . . Slashing Weapon 13 | . . . 1 . . . . 6 . 6 Piercing Weapon . | . . . . . . . . . . . Special Melee Weapon 2 | . 1 . 1 . . . . . . . Unidentified Prototypes 3 | . 1 . 2 . . . . . . . Parts Lost 37 | . 2 . 1 . . . 1 1 . 32 Power 5 | . . . . . . . 1 . . 4 Propulsion 15 | . 1 . . . . . . . . 14 Utility 7 | . . . 1 . . . . 1 . 5 Weapon 10 | . 1 . . . . . . . . 9 Highest Loss Streak 20 | . 2 . 1 . . . 1 1 . 20 To Critical Strikes . | . . . . . . . . . . . Average Slot Usage (%) 98 | . 99 100 98 100 100 100 99 99 99 93 Engine 8 | . 14 14 6 11 11 11 8 9 7 3 Core 1 | . . . 4 . . . . . . 3 Treads 26 | . 10 28 32 33 33 33 26 27 30 27 Leg 2 | . 17 . . . . . . . . . Device 13 | . 14 14 11 11 11 11 9 14 15 15 Storage 9 | . 14 14 11 11 11 11 9 9 7 7 Processor 5 | . . . . . . . 9 9 14 10 Protection 2 | . . . . . . . 9 3 . 2 Energy Gun 18 | . 21 28 28 11 11 11 12 17 15 12 Energy Cannon 2 | . . . 1 11 11 11 5 . . 2 Ballistic Gun 5 | . 6 . 2 11 11 11 9 8 7 4 Peak Build Rating 49 | 7 10 9 18 14 14 14 28 32 36 49 Average Rating 22 | 5 7 9 13 14 13 14 21 30 35 37 On Entrance 16 | . 7 9 9 14 14 14 14 28 32 36 Naked Turns . | . . . . . . . . . . . Heaviest Build 114 | 15 50 50 55 55 55 55 106 107 100 114 Greatest Support 83 | 20 40 40 60 60 60 60 60 60 80 83 Greatest Overweight (x) 7 | 3 2 1 . . . . 2 1 1 7 Average Overweight (x) . | . . 1 . . . . 1 1 1 1 Largest Inventory Capacity 25 | 8 20 20 20 20 20 20 25 25 25 25 Average Capacity 22 | 7 14 20 20 20 20 20 24 25 25 25 Most Carried 25 | 5 19 20 20 20 20 20 25 25 25 25 Average Carried 20 | 3 10 19 19 20 19 20 22 24 23 22 Final Capacity 25 | 8 20 20 20 20 20 20 25 25 25 25 Final Carried 25 | 4 19 20 20 20 20 20 25 25 25 25 Class Distribution -------------------- 37% | Scavenger-Gunner 29% | Scavenger-Skirmisher 22% | Mutant 6% | Skirmisher Dominant Class ---------------- Mutant | -10/Materials Mutant | -10/Mines Scavenger-Gunner | -9/Materials Scavenger-Gunner | -9/Mines Scavenger-Gunner | -9/Exiles Scavenger-Skirmisher | -8/Mines Scavenger-Skirmisher | -8/Materials Scavenger-Skirmisher | -8/Garrison Scavenger-Gunner | -7/Factory Scavenger-Gunner | -7/Garrison Resources | -11 -10 -10 -9 -9 -9 -8 -8 -8 -7 -7 ----------- Run | Yrd Mat Min Mat Min Exi Min Mat Gar Fac Gar Matter Collected 3048 | 270 260 20 641 29 . . 294 722 37 775 Remotely . | . . . . . . . . . . . Salvage Created 5232 | 123 593 . 1496 . . . 778 730 37 1475 Parts 273 | 7 42 . 80 . . . 44 48 1 51 Haulers Intercepted 10 | . 2 . 5 . . . 2 . 1 . Recyclers Shooed 1 | . . . 1 . . . . . . . Parts Field Recycled . | . . . . . . . . . . . Retrieved Matter . | . . . . . . . . . . . Parts Self-Destructed . | . . . . . . . . . . . Prevented . | . . . . . . . . . . . Kills | -11 -10 -10 -9 -9 -9 -8 -8 -8 -7 -7 ------- Run | Yrd Mat Min Mat Min Exi Min Mat Gar Fac Gar Combat Hostiles Destroyed 104 | . 11 . 23 . . . 14 27 . 29 Melee 2 | . . . . . . . . . . 2 Guns 70 | . 11 . 18 . . . 10 12 . 19 Cannons 7 | . . . 1 . . . 4 . . 2 AOE 22 | . . . 3 . . . . 14 . 5 Classes Destroyed 14 | 2 5 . 5 . . . . 1 . 1 Worker 2 | . . . 1 . . . 1 . . . Builder 1 | . 1 . . . . . . . . . Tunneler 4 | 2 1 . 1 . . . . . . . Hauler 10 | . 2 . 5 . . . 2 . 1 . Recycler 3 | 1 . . 2 . . . . . . . Operator 2 | . . . 1 . . . 1 . . . Watcher 12 | . 3 . 5 . . . 3 . . 1 Swarmer 27 | . 3 . 4 . . . 4 10 . 6 Grunt 47 | . 8 . 10 . . . 7 10 . 12 Brawler 3 | . . . 2 . . . . 1 . . Duelist 1 | . . . 1 . . . . . . . Sentry 20 | . . . 7 . . . 3 3 . 7 Programmer 7 | . . . . . . . . 3 . 4 Behemoth 1 | . . . . . . . . . . 1 Best Kill Streak 9 | 3 4 . 7 . . . 2 9 1 4 Combat Bots Only 9 | . 3 . 5 . . . 2 9 . 4 Max Kills in Single Turn 4 | 1 2 . 4 . . . 1 4 1 3 Gunslinging 1 | . 1 . . . . . . . . . Exploded 4 | . . . 2 . . . . 4 . 3 Melee 1 | . . . . . . . . . . 1 Uniques/NPCs Destroyed . | . . . . . . . . . . . Combat | -11 -10 -10 -9 -9 -9 -8 -8 -8 -7 -7 -------- Run | Yrd Mat Min Mat Min Exi Min Mat Gar Fac Gar Hostile Shots Fired 712 | . 64 . 79 . . . 35 57 . 477 Missed 215 | . 17 . 20 . . . 8 14 . 156 Damage Taken 6485 | . 570 . 779 . . . 336 597 . 4203 Core 1145 | . 90 . 156 . . . 81 77 . 741 Absorbed by Shields . | . . . . . . . . . . . Regen/Repaired (Parts) 98 | . . . 98 . . . . . . . Core Remaining (%) 74 | 100 . 64 . . . 61 . 71 . . Volleys Fired 292 | 7 46 . 75 . . . 39 45 2 78 Largest 3 | 2 2 . 3 . . . 3 3 3 3 Hottest 243 | 100 100 . 166 . . . 183 183 183 243 Shots Fired 695 | 14 91 . 205 . . . 117 93 6 169 Gun 601 | 14 91 . 189 . . . 85 77 6 139 Cannon 68 | . . . 13 . . . 32 . . 23 Launcher 26 | . . . 3 . . . . 16 . 7 Special . | . . . . . . . . . . . Kinetic 139 | . 30 . 11 . . . 39 24 2 33 Thermal 530 | 14 61 . 191 . . . 78 53 4 129 Explosive 26 | . . . 3 . . . . 16 . 7 Electromagnetic . | . . . . . . . . . . . Robot Hit Streak 27 | 11 10 . 15 . . . 10 17 7 27 Robot Miss Streak 5 | 3 5 . 4 . . . 4 2 2 4 Penetration Max 1 | . . . . . . . . . . 1 Secondary Targets 7 | . 2 . 2 . . . . 2 . 1 Max Gunslinging Chain 1 | . 1 . 1 . . . . 1 . 1 Shots Hit Robots 473 | 11 61 . 128 . . . 71 62 5 135 Core Hits 297 | 3 30 . 60 . . . 39 61 3 101 Critical Kills 2 | . . . 1 . . . 1 . . . Critical Parts Destroyed . | . . . . . . . . . . . Critical Strikes 20 | 2 5 . 8 . . . 2 . . 3 Burn 16 | 2 5 . 7 . . . 1 . . 1 Meltdown 1 | . . . 1 . . . . . . . Destroy 2 | . . . . . . . 1 . . 1 Sever 1 | . . . . . . . . . . 1 Melee Attacks 36 | . 4 . 2 . . . . 8 . 22 Impact 5 | . 4 . 1 . . . . . . . Slashing 31 | . . . 1 . . . . 8 . 22 Piercing . | . . . . . . . . . . . Sneak Attacks . | . . . . . . . . . . . Combat Hostiles . | . . . . . . . . . . . Follow-up Attacks . | . . . . . . . . . . . Damage Inflicted 11352 | 150 821 . 2120 . . . 1244 2580 112 4325 Guns 7803 | 150 816 . 1655 . . . 891 1328 112 2851 Cannons 901 | . . . 156 . . . 352 . . 393 Explosions 2087 | . . . 290 . . . . 1252 . 545 Melee 536 | . . . . . . . . . . 536 Ramming 25 | . 5 . 19 . . . 1 . . . Kinetic 1170 | . 236 . 65 . . . 314 180 16 359 Thermal 7534 | 150 580 . 1746 . . . 929 1148 96 2885 Explosive 2087 | . . . 290 . . . . 1252 . 545 Electromagnetic . | . . . . . . . . . . . Impact . | . . . . . . . . . . . Slashing 536 | . . . . . . . . . . 536 Piercing . | . . . . . . . . . . . Highest Corruption 4 | . . . 1 1 1 1 . 2 . 4 Average Corruption 2 | . . . 1 1 1 1 . 1 . 3 Corruption Purged . | . . . . . . . . . . . Corruption Blocked . | . . . . . . . . . . . Effects 92 | . . . 12 2 1 . . 18 . 59 Message Errors 24 | . . . 5 1 1 . . 3 . 14 Matter Fused 25 | . . . 1 1 . . . 8 . 15 Heat Flow Errors 14 | . . . 4 . . . . 1 . 9 Energy Discharges 11 | . . . 1 . . . . 2 . 8 Parts Fused 1 | . . . . . . . . . . 1 Data Loss (minor) 7 | . . . 1 . . . . 2 . 4 Data Loss (major) 3 | . . . . . . . . . . 3 Misfires 2 | . . . . . . . . 2 . . Alerts 3 | . . . . . . . . . . 3 Weapon Failures 2 | . . . . . . . . . . 2 Overload Shots . | . . . . . . . . . . . Overflow Damage 67 | . . . . . . . 13 12 . 42 Projectiles 13 | . . . . . . . 13 . . . Explosions 12 | . . . . . . . . 12 . . Melee 42 | . . . . . . . . . . 42 Knockbacks . | . . . . . . . . . . . Impact . | . . . . . . . . . . . Kinetic . | . . . . . . . . . . . Secondary . | . . . . . . . . . . . Self-Inflicted Damage 91 | . . . 21 . . . . 41 . 29 Shots 4 | . . . 1 . . . . 1 . 2 Rammed 5 | . . . 4 . . . 1 . . . Targets Rammed 9 | . 4 . 4 . . . 1 . . . Kicked 4 | . 4 . . . . . . . . . Crushed . | . . . . . . . . . . . Highest Temperature 855 | 72 249 . 443 . . . 294 318 15 855 Average Temperature 90 | 33 53 . 103 . . . 83 75 10 114 Received Heat Transfer 2685 | . 309 . 234 . . . 162 117 . 1863 Effects 18 | . 2 . 1 . . . . 3 . 12 Shutdowns 2 | . . . . . . . . . . 2 Energy Bleed 2 | . . . 1 . . . . . . 1 Interference 5 | . 2 . . . . . . 3 . . Matter Decay 2 | . . . . . . . . . . 2 Damage (minor) 2 | . . . . . . . . . . 2 Damage (major) 2 | . . . . . . . . . . 2 Damage (core) 3 | . . . . . . . . . . 3 Siege Activations . | . . . . . . . . . . . Robots Corrupted . | . . . . . . . . . . . Combat Hostiles . | . . . . . . . . . . . Parts Fried . | . . . . . . . . . . . Impact Corruptions . | . . . . . . . . . . . Robots Melted 4 | 1 . . 1 . . . . 1 . 1 Combat Hostiles 3 | . . . 1 . . . . 1 . 1 Parts Melted 32 | 1 2 . 14 . . . 1 4 . 10 Heat Transferred 17969 | 592 2035 . 5254 . . . 2180 2332 225 5351 Parts Sabotaged . | . . . . . . . . . . . Parts Stolen . | . . . . . . . . . . . Parts Stripped . | . . . . . . . . . . . Power Chain Reactions . | . . . . . . . . . . . Alert | -11 -10 -10 -9 -9 -9 -8 -8 -8 -7 -7 ------- Run | Yrd Mat Min Mat Min Exi Min Mat Gar Fac Gar Peak Influence 1911 | 15 161 . 436 147 . . 215 1275 676 1911 Initial 669 | . 9 . . 147 . . . 71 669 473 Average 492 | 5 40 . 242 147 . . 72 759 673 1086 Maximum Alert Level 5 | . . . 2 . . . 1 4 2 5 Low Security (%) 41 | 100 100 100 25 100 . 100 98 8 . . Level 1 15 | . . . 72 . . . 1 11 . . Level 2 13 | . . . 1 . . . . 20 100 28 Level 3 14 | . . . . . . . . 41 . 28 Level 4 10 | . . . . . . . . 18 . 26 Level 5 4 | . . . . . . . . . . 16 High Security . | . . . . . . . . . . . Max Security . | . . . . . . . . . . . Squads Dispatched 9 | . 3 . 3 . . . 2 . 1 . Investigation 4 | . 2 . . . . . 1 . 1 . Extermination . | . . . . . . . . . . . Reinforcement 5 | . 1 . 3 . . . 1 . . . Assault . | . . . . . . . . . . . Garrison . | . . . . . . . . . . . Intercept . | . . . . . . . . . . . Searches Triggered . | . . . . . . . . . . . Construction Impeded 1 | . . . . . . . 1 . . . Haulers Reinforced . | . . . . . . . . . . . Active Scanning Responses . | . . . . . . . . . . . Cargo Convoy Interrupts . | . . . . . . . . . . . Stealth | -11 -10 -10 -9 -9 -9 -8 -8 -8 -7 -7 --------- Run | Yrd Mat Min Mat Min Exi Min Mat Gar Fac Gar Distress Signals 7 | . 1 . 2 . . . 3 . . 1 Communications Jammed . | . . . . . . . . . . . Distress Signals . | . . . . . . . . . . . Times Spotted 151 | . 15 . 47 . . . 19 29 1 40 Peak Tracking Total 6 | . 5 . 5 . . . 4 4 1 6 Tactical Retreats 6 | . . . 5 . . . 1 . . . Traps | -11 -10 -10 -9 -9 -9 -8 -8 -8 -7 -7 ------- Run | Yrd Mat Min Mat Min Exi Min Mat Gar Fac Gar Traps Triggered 20 | . 2 . . . . . 2 10 . 6 Indirectly . | . . . . . . . . . . . Trap Hack Attempts 4 | . 1 . 3 . . . . . . . Triggered . | . . . . . . . . . . . Disarmed 2 | . 1 . 1 . . . . . . . Reprogrammed . | . . . . . . . . . . . Reused . | . . . . . . . . . . . Traps Extracted . | . . . . . . . . . . . Installed . | . . . . . . . . . . . Triggered . | . . . . . . . . . . . Machines | -11 -10 -10 -9 -9 -9 -8 -8 -8 -7 -7 ---------- Run | Yrd Mat Min Mat Min Exi Min Mat Gar Fac Gar Machines Disabled 13 | . 1 . 2 . . . 1 6 . 3 Max in Single Turn 1 | . 1 . 1 . . . 1 1 . 1 Garrison Relay 5 | . . . . . . . . 5 . . Machines Repaired . | . . . . . . . . . . . Machines Dismantled 1 | . . . . . . . . . . 1 Machines Sabotaged . | . . . . . . . . . . . Overloaded Fab Kills . | . . . . . . . . . . . Hacking | -11 -10 -10 -9 -9 -9 -8 -8 -8 -7 -7 --------- Run | Yrd Mat Min Mat Min Exi Min Mat Gar Fac Gar Machines Accessed 32 | . 9 . 13 . 1 . 4 2 2 1 Terminals 21 | . 7 . 9 . . . 2 2 . 1 Fabricators . | . . . . . . . . . . . Repair Stations 3 | . . . 2 . . . . . 1 . Recycling Units 3 | . 2 . 1 . . . . . . . Scanalyzers 2 | . . . 1 . . . 1 . . . Garrison Access 2 | . . . . . . . 1 . 1 . Total Hacks 89 | . 26 . 43 . 1 . 10 3 4 2 Successful 49 | . 12 . 23 . 1 . 8 2 2 1 Failed 40 | . 14 . 20 . . . 2 1 2 1 Catastrophic 3 | . 2 . 1 . . . . . . . Database Lockouts . | . . . . . . . . . . . Manual 49 | . 21 . 22 . 1 . 5 . . . Terminals 58 | . 22 . 26 . . . 5 3 . 2 Fabricators . | . . . . . . . . . . . Repair Stations 10 | . . . 7 . . . . . 3 . Recycling Units 10 | . 4 . 6 . . . . . . . Scanalyzers 8 | . . . 4 . . . 4 . . . Garrison Access 2 | . . . . . . . 1 . 1 . Terminal Hacks 17 | . 6 . 6 . 1 . 1 2 . 1 Robot Analysis 3 | . 3 . . . . . . . . . Open Door 1 | . . . . . . . . 1 . . Branch Access Points 2 | . 1 . 1 . . . . . . . Emergency Access Points 1 | . . . . . . . . . . 1 Terminal Index 1 | . . . 1 . . . . . . . Unreport Threat 3 | . 1 . 2 . . . . . . . Locate Traps 2 | . 1 . 1 . . . . . . . Hauler Manifests 1 | . . . . . . . 1 . . . Zone Layout 1 | . . . 1 . . . . . . . Security Stations 1 | . . . . . . . . 1 . . Derelict Proto ID Bank 1 | . . . . . 1 . . . . . Fabricator Hacks . | . . . . . . . . . . . Repair Station Hacks 7 | . . . 6 . . . . . 1 . Scan Component 4 | . . . 3 . . . . . 1 . Repair 3 | . . . 3 . . . . . . . Recycling Unit Hacks 2 | . 1 . 1 . . . . . . . Retrieve Components 2 | . 1 . 1 . . . . . . . Scanalyzer 8 | . . . 4 . . . 4 . . . Insert Component 4 | . . . 2 . . . 2 . . . Analyze 4 | . . . 2 . . . 2 . . . Garrison Access Hacks 2 | . . . . . . . 1 . 1 . Unlock Access 2 | . . . . . . . 1 . 1 . Unauthorized Hacks 13 | . 5 . 6 . . . 2 . . . Terminals 9 | . 3 . 4 . . . 2 . . . Botnet 9 | . 3 . 4 . . . 2 . . . Fabricators . | . . . . . . . . . . . Repair Stations . | . . . . . . . . . . . Recycling Units 4 | . 2 . 2 . . . . . . . Reject 2 | . 1 . 1 . . . . . . . Mask 2 | . 1 . 1 . . . . . . . Scanalyzers . | . . . . . . . . . . . Garrison Access . | . . . . . . . . . . . Data Cores Recovered 2 | . . . 1 . . . 1 . . . Used . | . . . . . . . . . . . Hacking Detections 23 | . 8 . 10 . . . 2 1 1 1 Full Trace Events 1 | . . . . . . . . . 1 . Feedback Events . | . . . . . . . . . . . Feedback Blocked . | . . . . . . . . . . . Robot Schematics Acquired . | . . . . . . . . . . . Robots Built . | . . . . . . . . . . . Authchips . | . . . . . . . . . . . Time . | . . . . . . . . . . . Total Robot Build Rating . | . . . . . . . . . . . Part Schematics Acquired 4 | . . . 2 . . . 2 . . . Parts Built . | . . . . . . . . . . . Authchips . | . . . . . . . . . . . Time . | . . . . . . . . . . . Total Part Build Rating . | . . . . . . . . . . . Parts Repaired 3 | . . . 3 . . . . . . . Time 90 | . . . 90 . . . . . . . Parts Recycled . | . . . . . . . . . . . Recycled Matter . | . . . . . . . . . . . Retrieved Matter . | . . . . . . . . . . . Retrieved Components 12 | . 3 . 9 . . . . . . . Parts Scanalyzed 4 | . . . 2 . . . 2 . . . Part Schematics Acquired 4 | . . . 2 . . . 2 . . . Parts Damaged . | . . . . . . . . . . . Bothacking | -11 -10 -10 -9 -9 -9 -8 -8 -8 -7 -7 ------------ Run | Yrd Mat Min Mat Min Exi Min Mat Gar Fac Gar Used RIF Installer 3 | . . . . . . . . 1 . 2 Robot Detection 1 | . . . . . . . . . . 1 Patrol Navigation 1 | . . . . . . . . . . 1 Robots Hacked . | . . . . . . . . . . . Non-combat . | . . . . . . . . . . . Combat . | . . . . . . . . . . . Robot Hacks Applied . | . . . . . . . . . . . Relay Couplers Released 23 | . . . . . . . . 20 . 3 Machine Destruction 20 | . . . . . . . . 20 . . Programmers 3 | . . . . . . . . . . 3 Fabnet Peak Effective % . | . . . . . . . . . . . Robots Rewired 3 | . . . . . . . . . . 3 Allies Hacked . | . . . . . . . . . . . Hacks Repelled . | . . . . . . . . . . . Allies | -11 -10 -10 -9 -9 -9 -8 -8 -8 -7 -7 -------- Run | Yrd Mat Min Mat Min Exi Min Mat Gar Fac Gar Total Allies 9 | . . 3 . . . . . 1 . 5 Largest Group 3 | . . 3 3 . . . . 1 . 3 Highest-Rated Group 67 | . . 40 40 . . . . 31 . 67 Highest-Rated Ally 31 | . . 16 16 . . . . 31 . 31 Total Orders . | . . . . . . . . . . . Ally Attacks 102 | . . . 36 . . . . 13 . 53 Total Damage 1348 | . . . 340 . . . . 142 . 866 Kills 19 | . . . 9 . . . . 3 . 7 Allies Corrupted . | . . . . . . . . . . . Allies Melted . | . . . . . . . . . . . Intel | -11 -10 -10 -9 -9 -9 -8 -8 -8 -7 -7 ------- Run | Yrd Mat Min Mat Min Exi Min Mat Gar Fac Gar Robot Analysis Total 3 | . 3 . . . . . . . . . Derelict Logs Recovered 1 | . . 1 . . . . . . . . Drone Launches . | . . . . . . . . . . . Drone Recoveries . | . . . . . . . . . . . Exploration | -11 -10 -10 -9 -9 -9 -8 -8 -8 -7 -7 ------------- Run | Yrd Mat Min Mat Min Exi Min Mat Gar Fac Gar Turns Passed 11590 | 118 1397 872 2053 258 347 18 1359 2074 228 2866 Spaces Moved 4641 | 61 617 363 932 157 216 12 467 754 88 974 Core 11 | 11 . . . . . . . . . . Treads 4149 | . 194 363 932 157 216 12 467 754 88 966 Legs 473 | 50 423 . . . . . . . . . Wheels 8 | . . . . . . . . . . 8 Hover . | . . . . . . . . . . . Flight . | . . . . . . . . . . . Fastest Speed 50 | 50 120 240 160 160 160 160 240 240 240 195 Average Speed 206 | 125 169 240 160 160 160 160 240 240 240 240 Slowest Speed 400 | 200 260 240 160 160 160 160 320 240 240 400 Overloaded Moves . | . . . . . . . . . . . Propulsion Burnouts . | . . . . . . . . . . . Robots Hopped . | . . . . . . . . . . . Cave-ins Triggered . | . . . . . . . . . . . Exploration Rate (%) 51 | 4 89 85 94 28 60 5 53 81 2 67 Regions Visited 10 Branch Regions 4 Pre-discovered Areas . | . . . . . . . . . . . Known Exits Taken 4 | . 1 . 1 . . . 1 . 1 . Unknown Exits Taken 5 | 1 . 1 . 1 1 1 . . . . Scrap Searched 1 | . . . . 1 . . . . . . Spaces Dug 3 | . . . 2 . . . . 1 . . Terrain Destroyed 135 | . . . 29 . . . . 62 . 44 Melee 3 | . . . 2 . . . . 1 . . Projectile 1 | . . . . . . . . . . 1 AOE 131 | . . . 27 . . . . 61 . 43 Terrain Rammed . | . . . . . . . . . . . Walls Destroyed . | . . . . . . . . . . . Machines Disabled . | . . . . . . . . . . . Actions | -11 -10 -10 -9 -9 -9 -8 -8 -8 -7 -7 --------- Run | Yrd Mat Min Mat Min Exi Min Mat Gar Fac Gar Total 5959 | 85 871 364 1313 163 218 11 622 921 101 1290 Wait 584 | 6 144 . 201 6 . . 76 63 3 85 Move 4630 | 60 616 362 931 156 215 11 466 752 87 974 Hop . | . . . . . . . . . . . Pick Up 82 | 5 24 1 14 . 1 . 14 5 3 15 Fast Attach 62 | 6 5 . 15 . . . 8 6 1 21 Attach 29 | 1 3 . 2 . . . 3 . 3 17 Detach 6 | . . . 2 . . . . . . 4 Swap 96 | . 11 1 41 1 1 . 3 18 . 20 Drop 69 | . 13 . 23 . 1 . 12 10 2 8 Fire 292 | 7 46 . 75 . . . 39 45 2 78 Melee 36 | . 4 . 2 . . . . 8 . 22 Ram . | . . . . . . . . . . . Kick 4 | . 4 . . . . . . . . . Crush 5 | . . . 4 . . . 1 . . . Escape Stasis 24 | . . . . . . . . 14 . 10 Rewire 28 | . . . . . . . . . . 28 Trap 4 | . 1 . 3 . . . . . . . Miscellaneous 8 | . . . . . . . . . . 8 Route ------- -11/Scrapyard -10/Materials (discovered 4 exits: *Mat x3 / *Min) -10/Mines (discovered 3 exits: *Mat x2 / [*Sub]) -9/Materials (discovered 7 exits: *Mat x3 / *Min x2 / *Sto x2) -9/Mines (discovered 2 exits: *Mat / *Exi) -9/Exiles -8/Mines -8/Materials (discovered 2 exits: *Fac / Gar) -8/Garrison (discovered 3 exits: *Fac x3) -7/Factory (discovered 2 exits: [*Low] / Gar) -7/Garrison (discovered 3 exits: [*Fac x3]) History --------- Turn | Location | Event 22 | -11/Scrapyard | Discovered new exit (range 15) 119 | -11/Scrapyard | Entered Materials 317 | -10/Materials | Build established: Mutant 384 | -10/Materials | Discovered new exit (range 5) 654 | -10/Materials | Discovered new exit (range 10) 736 | -10/Materials | Identified exit to Mines 939 | -10/Materials | Discovered new exit (range 3) 1516 | -10/Materials | Entered Mines 1530 | -10/Mines | Received a Rocket Launcher from a helpful Derelict 1532 | -10/Mines | Learned Materials trap positions 1560 | -10/Mines | Met a Derelict bent on vengeance 2153 | -10/Mines | Assisted by bots powering up and referring to "LRC-V3" 2325 | -10/Mines | Discovered new exit (range 11) 2325 | -10/Mines | Discovered new exit (range 10) 2340 | -10/Mines | Discovered new exit (range 13) 2388 | -10/Mines | Entered Materials 2388 | -9/Materials | Accompanied by 3 allies 2388 | -9/Materials | Evolved 2 slots: Propulsion x1, Weapon x1 2389 | -9/Materials | Loaded intel: 16 trap records 2575 | -9/Materials | Discovered new exit (range 12) 2903 | -9/Materials | Discovered new exit (range 16) 3021 | -9/Materials | Build established: Scavenger-Gunner 3235 | -9/Materials | Repaired Imp. Heat Sink 3262 | -9/Materials | Repaired Lgt. Treads 3354 | -9/Materials | Discovered new exit (range 7) 3437 | -9/Materials | Identified exit to Mines 3437 | -9/Materials | Identified exit to Storage 3451 | -9/Materials | Discovered new exit (range 13) 3565 | -9/Materials | Repaired Lgt. Treads 3977 | -9/Materials | Discovered new exit (range 16) 4441 | -9/Materials | Entered Mines 4464 | -9/Mines | Deemed a non-threat by the Exiles lab entrance 4465 | -9/Mines | Discovered new exit (range 5) 4537 | -9/Mines | Discovered new exit (range 7) 4699 | -9/Mines | Entered Exiles 4743 | -9/Exiles | Met 8R-AWN 4767 | -9/Exiles | Met EX-HEX 4816 | -9/Exiles | Met EX-BIN 4837 | -9/Exiles | Aligned with FarCom system 4839 | -9/Exiles | Given EX-Vault access code 4879 | -9/Exiles | Opened EX-Vault 4887 | -9/Exiles | Found Supersonic Drone Bay 4919 | -9/Exiles | Warned to stay clear of 0b10 Research branches 4971 | -9/Exiles | Met EX-DEC 5026 | -9/Exiles | Discovered new exit (range 14) 5046 | -9/Exiles | Left Exiles lab with Supersonic Drone Bay 5046 | -9/Exiles | Entered Mines 5046 | -8/Mines | Discovered new exit (range 11) 5064 | -8/Mines | Entered Materials 5064 | -8/Materials | Evolved 2 slots: Utility x2 5315 | -8/Materials | Discovered new exit (range 10) 5353 | -8/Materials | Build established: Scavenger-Skirmisher 6420 | -8/Materials | Identified exit to Garrison 6423 | -8/Materials | Entered Garrison 6459 | -8/Garrison | Build established: Skirmisher 6564 | -8/Garrison | Triggered checkpoint 6630 | -8/Garrison | Rescued a captive Derelict 6681 | -8/Garrison | Garrison Relay disabled 6829 | -8/Garrison | Triggered checkpoint 6848 | -8/Garrison | Triggered checkpoint 6887 | -8/Garrison | Destroyed 9 combat bots 6929 | -8/Garrison | Triggered checkpoint 7048 | -8/Garrison | Discovered new exit (range 11) 7113 | -8/Garrison | Installed Relay Interface Framework 7166 | -8/Garrison | Build established: Scavenger-Skirmisher 7171 | -8/Garrison | Triggered checkpoint 7250 | -8/Garrison | Garrison Relay disabled 7560 | -8/Garrison | Learned Factory security intel 7604 | -8/Garrison | Discovered new exit (range 11) 7641 | -8/Garrison | Triggered checkpoint 7765 | -8/Garrison | Garrison Relay disabled 7789 | -8/Garrison | Garrison Relay disabled 8034 | -8/Garrison | Discovered new exit (range 12) 8133 | -8/Garrison | Triggered checkpoint 8235 | -8/Garrison | Garrison Relay disabled 8497 | -8/Garrison | Entered Factory 8497 | -7/Factory | Evolved 2 slots: Propulsion x1, Utility x1 8640 | -7/Factory | Discovered new exit (range 7) 8722 | -7/Factory | Identified exit to Garrison 8725 | -7/Factory | Entered Garrison 8805 | -7/Garrison | Triggered checkpoint 8897 | -7/Garrison | Build established: Scavenger-Gunner 8931 | -7/Garrison | Triggered checkpoint 9067 | -7/Garrison | Expanded RIF knowledge: Robot Detection 9184 | -7/Garrison | Triggered checkpoint 9238 | -7/Garrison | Lost 4 parts (2n2w) 9258 | -7/Garrison | Discovered new exit (range 6) 9535 | -7/Garrison | Triggered checkpoint 9598 | -7/Garrison | Triggered checkpoint 9623 | -7/Garrison | Triggered checkpoint 9815 | -7/Garrison | Expanded RIF knowledge: Patrol Navigation 9887 | -7/Garrison | Rescued a captive Derelict 9888 | -7/Garrison | Rescued a captive Derelict 9936 | -7/Garrison | Discovered new exit (range 10) 10019 | -7/Garrison | Triggered checkpoint 10425 | -7/Garrison | Triggered checkpoint 10467 | -7/Garrison | Lost 3 allies 10648 | -7/Garrison | Discovered new exit (range 5) 10786 | -7/Garrison | Spotted B-75 Beast 10788 | -7/Garrison | Core integrity fell below 50% 10845 | -7/Garrison | Destroyed B-75 Beast 10874 | -7/Garrison | Lost 20 parts (2p8n5u5w) 11235 | -7/Garrison | Build established: Scavenger-Skirmisher 11537 | -7/Garrison | Spotted B-75 Beast 11537 | -7/Garrison | Spotted B-75 Beast 11589 | -7/Garrison | Core integrity fell below 20% 11592 | -7/Garrison | Core destroyed Last Messages --------------- 11575_ Overheating: Core damaged (-77). 11575_ ALERT: Garrison interior compromised. 11576_ Overheating: Energy bleed (-2). 11580_ Power failure, Lgt. Nuclear Core shutdown. 11582_ Critical hit (Meltdown: +310). 11584_ Overheating: Matter decay (-51). 11585_ Overheating: Lgt. Nuclear Core damaged (-27). 11586_ Overheating: Lgt. Nuclear Core damaged (-6). 11586_ Lgt. Nuclear Core destroyed. 11586_ Critical hit (Meltdown: +330). 11587_ Overheating: Huge Storage Unit damaged (-282). 11587_ Overheating: Imp. Light Armor Plating damaged (-16). 11588_ Wave Gun destroyed. 11589_ Overheating: Core damaged (-70). 11592_ Overheating: Core damaged (-105). Map ----- +----------------------------------------------------+ | ?# #"#???????????????????????????????????????????? | | ?# "#???????????????????????????????????????????? | | ?# "#???????????????????????????????????????????? | | ?# "#???????????????????????????????????????????? | | ?# #"#???????????????????????????????????????????? | | ?# ###?????????????????????????????????+?????????? | | ?# #?????????????????????????????????????????????? | | ?# #?????????????????????????????????????????????? | | ?# #?????????????????????????????????????????????? | | ##=#???????????????????????????s?????????????????? | | *%#?????????????????????????????????????????????? | | =#??????????????????g????????ss?g??????????????? | | !#?????????????????+g???+???+s??g+?????????????? | | ##%#??????????????????g???????????g??????????????? | | ?#[#?????????????????????????????????????????????? | | ## #######???###+##?????????????????????+????????? | | # #???# ??????????????????????????????? | | ##### #???# ???????????????????????????????? | | ????# #???# ???????????????????????????????? | | ????# ##???# #?????#++#??????????????????????? | | ????#####????# #?????# #??????????????????????? | | ?????????????# #?????# #??????????????????????? | | ?????????????# #???### #??????????????????????? | | ?????????????# +???? #??????????????????????? | | ???????####### #?????#%%#??????????????????????? | | ???????# ## #?????# @#??????????????????????? | | ??##+### ## #?????# #?????????##???????????? | | ### ####### #BB##!!! !!!#??????????? | | = % =+! BBBB #??????????? | | =% !"! BB #??????????? | | ### ## ## !############## #??????????? | | ###% ## ## ###?????????????? #??????????? | | # = #??????????????????#??????????? | | # #?????????????????????????????? | | # =%#?????????????????????????????? | | # ! #?????????????????????????????? | | ### #*% ##^ ###?????????????????????????????? | | ??# ## = ## ############????????????????????? | | ??#% #????????#######?????? | | ??+ * ##########"""""#?????? | | ??# = " #??????? | | ??## ##= =## #+####### ###### ########??????? | | ???# ##% ## #???????# #????# #?????????????? | | ???# ##### ## #???????+ #????# #?????????????? | | ???+ #???# ## #???????# #????# #?????????????? | | ???# #???# + #???????# #????# #?????????????? | | ???# #???#### #???????# #????# #?????????????? | | ???# #??????# ###+##### ######"###???????????? | | #### #??????# ! ! # ##! ############# | | #??????#% *%%= %=# #! " | +----------------------------------------------------+ Best States ------------- Heat Dissipation 62 Energy Generation 18 Energy Capacity 290 Matter Stores 300 Matter Capacity 300 Sight Range 16 Terrain Scan Density 10 Armor Coverage 300 Evasion (%) 55 Targeting Accuracy 8 Core Analysis 6 Recoil Reduction 4 Particle Charging 20 Salvage Targeting 2 Item Schematics ----------------- Structural Scanner | -9/Materials | Scanalyzed Huge Storage Unit | -9/Materials | Scanalyzed Plasma Cutter | -8/Materials | Scanalyzed Hcp. Storage Unit | -8/Materials | Scanalyzed Robot Schematics ------------------ None Fabricated ------------ Nothing Alien Tech Used ----------------- None Achievements -------------- None Challenges ------------ None Game ------ Seed SpacefoldGhostBay Manual? 0 Play Time 01:12:32 Cumulative 13.7 hours Start 2025.03.26 @ 20:22:55 End 2025.03.26 @ 21:35:20 Sessions 1 Manual Loads 0 Difficulty Rogue Special Mode None Game No. 6 Rogue 6 Adventurer 0 Explorer 0 Win Type - Total 1 Types 0/0/1/0/0/0/0/0/0 Lore% 11 Gallery% 19 Achievement% 39 Wizard Run 0 Options --------- Layout 1 ASCII 0 Keyboard 0 Movement Arrows Keybinds 0 Fullscreen 2 Font 24/Terminus Map View 50x35 Zoom Use 0% Tactical HUD 1 Map Filters NONE Filters NONE Steam 0 RUN: 4bd1fbea-56ef-48ec-868e-735eff6f253c